bitfinex-derivatives/quotes_SOLF0:USTF0_20250124
["timestamp","ask_amount","ask_price","bid_price","bid_amount"]
[1737748143987,0.02857659,261.14,261.09,3.85636061]
[1737748145184,0.02857659,261.14,261.09,0.02776061]
[1737748145388,9.13980981,261.11,260.96,1.2584]
[1737748145688,9.13980981,261.11,261.0,3.8299]
[1737748145883,9.13980981,261.11,260.96,1.2584]
[1737748146089,9.13980981,261.11,260.96,10.39820981]
[1737748146788,0.02546115,261.06,260.96,10.39820981]
[1737748147186,0.02546115,261.06,260.92,9.13980981]
[1737748147486,0.02546115,261.06,260.93,1.2584]
[1737748147684,0.02546115,261.06,261.05,3.8293]
[1737748148584,0.02546115,261.06,261.01,1.3131]
[1737748148790,0.02546115,261.06,261.03,3.8295]
[1737748149789,0.02546115,261.06,261.04,3.8294]
[1737748152792,0.02546115,261.06,261.01,1.3131]
[1737748152793,0.02546115,261.06,261.02,3.8296]
[1737748153096,0.02546115,261.06,260.96,9.13980981]
[1737748153283,0.02546115,261.06,260.99,3.8302]
[1737748153593,0.02546115,261.06,260.94,1.3016]
[1737748153891,0.02546115,261.06,260.97,3.8303]
[1737748154189,0.02546115,261.06,260.94,1.3016]
[1737748154190,9.16527096,261.06,260.88,9.13980981]
[1737748154492,1.2547,261.05,260.88,9.13980981]
[1737748154689,3.8305,260.97,260.95,6.16e-06]
[1737748155888,9.13980981,260.98,260.95,6.16e-06]
[1737748156086,0.02620375,260.99,260.95,6.16e-06]
[1737748159596,0.02620375,260.99,260.96,3.8306]
[1737748159898,0.02620375,260.99,260.95,6.16e-06]
[1737748161698,0.02620375,260.99,260.95,3.83060616]
[1737748162198,0.02620375,260.99,260.97,3.8304]
[1737748162797,0.02620375,260.99,260.98,3.8303]
[1737748163301,9.13980981,261.15,260.96,9.13980981]
[1737748163600,1.2605,261.14,260.96,9.13980981]
[1737748163999,3.8285,261.11,260.96,9.13980981]
[1737748164597,0.0294109,261.06,261.05,3.8293]
[1737748164798,3.8283,261.13,261.05,3.8293]
[1737748165000,0.02801523,261.08,261.05,3.8293]
[1737748167199,0.02801523,261.08,261.03,0.02661564]
[1737748170911,0.02801523,261.08,261.06,3.8291]
[1737748171712,0.02801523,261.08,261.07,3.829]
[1737748172918,0.02801523,261.08,261.03,0.02661564]
[1737748172919,9.16782504,261.08,261.03,0.02661564]
[1737748173214,9.16782504,261.08,260.95,6.16e-06]
[1737748173513,3.83,261.01,260.95,6.16e-06]
[1737748173712,2.5928,261.07,260.95,6.16e-06]
[1737748174108,3.8295,261.04,260.95,6.16e-06]
[1737748174314,2.5928,261.07,260.95,6.16e-06]
[1737748174508,0.02787153,261.04,260.95,6.16e-06]
[1737748175816,3.8298,261.02,260.95,6.16e-06]
[1737748176615,3.8296,261.03,260.96,3.8306]
[1737748176810,0.02787153,261.04,260.95,6.16e-06]
[1737748177515,3.8298,261.02,260.95,3.83080616]
[1737748177814,0.02787153,261.04,260.95,6.16e-06]
[1737748178315,3.8296,261.03,260.95,3.83060616]
[1737748178515,3.8296,261.03,260.95,6.16e-06]
[1737748179817,3.8296,261.03,260.96,3.8305]
[1737748180519,0.02787153,261.04,260.98,3.8303]
[1737748181216,0.02787153,261.04,260.95,6.16e-06]
[1737748181217,0.02787153,261.04,260.99,3.8301]
[1737748183516,0.02787153,261.04,260.97,9.13980981]
[1737748183721,0.02787153,261.04,260.95,6.16e-06]
[1737748185817,0.02787153,261.04,260.97,9.13980981]
[1737748186022,0.02787153,261.04,261.03,3.8296]
[1737748187716,1.2705,261.18,261.01,9.13980981]
[1737748187921,1.2705,261.18,261.06,9.13980981]
[1737748188517,3.8278,261.15,261.06,9.13980981]
[1737748188717,1.2705,261.18,261.02,9.13980981]
[1737748188920,0.02789348,261.13,261.08,0.02447315]
[1737748189425,0.02789348,261.13,261.09,3.8287]
[1737748189620,0.02789348,261.13,261.08,0.02447315]
[1737748190022,0.02789348,261.13,261.08,3.85327315]
[1737748190222,0.02789348,261.13,261.08,0.02447315]
[1737748190616,0.02789348,261.13,261.12,3.8283]
[1737748195524,9.13980981,261.25,261.1,9.13980981]
[1737748195525,9.13980981,261.25,261.17,3.8275]
[1737748195927,9.13980981,261.25,261.13,3.8281]
[1737748196629,0.0274479,261.22,261.16,0.0284579]
[1737748197631,3.8272,261.2,261.16,0.0284579]
[1737748199123,0.0274479,261.22,261.16,0.0284579]
[1737748199732,3.8543479,261.22,261.16,0.0284579]
[1737748200229,9.13980981,261.21,261.16,0.0284579]
[1737748200434,9.13980981,261.21,261.02,9.13980981]
[1737748201029,9.13980981,261.21,261.02,12.96940981]
[1737748201230,9.13980981,261.17,260.98,9.13980981]
[1737748201436,1.2304,261.16,260.98,9.13980981]
[1737748201635,0.02839267,261.1,261.05,0.02730711]
[1737748202634,3.85699267,261.1,261.05,0.02730711]
[1737748202833,0.02839267,261.1,261.05,0.02730711]
[1737748203728,3.85709267,261.1,261.05,0.02730711]
[1737748207336,0.02839267,261.1,261.05,0.02730711]
[1737748208437,0.02839267,261.1,261.06,3.8291]
[1737748208736,0.02839267,261.1,261.05,0.02730711]
[1737748209731,0.02839267,261.1,261.08,3.8288]
[1737748209932,0.02839267,261.1,261.05,0.02730711]
[1737748210636,0.02839267,261.1,261.09,3.8287]
[1737748211337,10.42500981,261.25,261.06,9.13980981]
[1737748211532,10.42500981,261.25,261.06,10.40270981]
[1737748211739,10.42500981,261.25,261.07,1.3334]
[1737748212141,3.8268,261.23,261.15,3.8277]
[1737748212340,10.42500981,261.25,261.1,9.13980981]
[1737748212635,0.02778988,261.22,261.16,0.02909872]
[1737748212941,0.02778988,261.22,261.16,3.85679872]
[1737748213439,0.02778988,261.22,261.16,0.02909872]
[1737748214036,3.85468988,261.22,261.16,0.02909872]
[1737748214232,0.02778988,261.22,261.16,0.02909872]
[1737748216843,0.02778988,261.22,261.21,3.8269]
[1737748218938,0.00171775,261.22,261.21,3.8269]
[1737748220440,0.00171775,261.22,261.21,12.96670981]
[1737748220842,1.327,261.34,261.3,3.8256]
[1737748221043,2.5747,261.35,261.21,9.13980981]
[1737748221644,2.5747,261.35,261.29,3.8257]
[1737748221942,2.5747,261.35,261.21,9.13980981]
[1737748222243,2.60320275,261.35,261.29,0.02647613]
[1737748222436,2.75e-06,261.35,261.31,9.13980981]
[1737748222944,2.75e-06,261.35,261.33,3.8252]
[1737748226244,1.2286,261.51,261.32,1.2858]
[1737748226447,1.2286,261.51,261.38,9.13980981]
[1737748227451,0.02886605,261.47,261.45,3.8234]
[1737748227746,0.02886605,261.47,261.42,9.16547385]
[1737748230152,0.02886605,261.47,261.44,3.8235]
[1737748230654,0.02886605,261.47,261.42,9.16547385]
[1737748230655,0.02886605,261.47,261.42,0.02566404]
[1737748231053,9.16867586,261.47,261.42,0.02566404]
[1737748231354,3.8237,261.43,261.42,0.02566404]
[1737748231845,9.16867586,261.47,261.42,0.02566404]
[1737748232049,3.8236,261.45,261.42,0.02566404]
[1737748232453,9.16867586,261.47,261.42,0.02566404]
[1737748232751,3.8237,261.43,261.42,0.02566404]
[1737748234953,0.02886605,261.47,261.42,0.02566404]
[1737748235246,0.02886605,261.47,261.42,3.84946404]
[1737748235452,0.02886605,261.47,261.42,0.02566404]
[1737748238356,0.02886605,261.47,261.46,3.8233]
[1737748238947,0.02886605,261.47,261.45,3.8234]
[1737748239454,0.02886605,261.47,261.46,3.8233]
[1737748239956,0.02886605,261.47,261.45,3.8234]
[1737748240155,0.02886605,261.47,261.42,0.02566404]
[1737748242059,0.02886605,261.47,261.45,3.8234]
[1737748243061,0.02886605,261.47,261.46,3.8233]
[1737748244162,1.2513,261.57,261.46,9.13980981]
[1737748245159,1.2513,261.57,261.49,3.84699585]
[1737748245360,0.02493477,261.54,261.49,0.02419585]
[1737748245761,0.02493477,261.54,261.52,3.8223]
[1737748245962,0.02493477,261.54,261.5,9.13980981]
[1737748246461,0.02493477,261.54,261.53,3.8223]
[1737748246858,0.02493477,261.54,261.5,9.13980981]
[1737748247159,0.02493477,261.54,261.49,0.02419585]
[1737748247760,3.84723477,261.54,261.49,0.02419585]
[1737748248261,3.8223,261.53,261.49,0.02419585]
[1737748248462,0.02493477,261.54,261.49,0.02419585]
[1737748248865,3.8227,261.5,261.49,0.02419585]
[1737748249762,3.8231,261.48,261.38,9.13980981]
[1737748250056,9.13980981,261.52,261.34,9.13980981]
[1737748250654,9.13980981,261.48,261.34,3.825]
[1737748250862,0.02612456,261.44,261.38,0.0275091]
[1737748251362,3.824,261.42,261.38,0.0275091]
[1737748253362,0.02612456,261.44,261.38,0.0275091]
[1737748253763,3.8241,261.41,261.38,0.0275091]
[1737748255368,0.02612456,261.44,261.38,0.0275091]
[1737748258869,0.02612456,261.44,261.4,3.8241]
[1737748259066,0.02612456,261.44,261.38,0.0275091]
[1737748259267,9.13980981,261.43,261.25,9.13980981]
[1737748259473,1.2816,261.42,261.25,9.13980981]
[1737748259866,9.13980981,261.39,261.21,9.13980981]
[1737748260270,9.13980981,261.39,261.2,1.3447]
[1737748260471,3.826,261.28,261.27,0.02695694]
[1737748261265,0.0258528,261.33,261.17,9.13980981]
[1737748261469,1.2834,261.34,261.13,9.13980981]
[1737748261470,9.13980981,261.31,261.13,9.13980981]
[1737748262074,3.8265,261.25,261.13,9.13980981]
[1737748262472,0.0256321,261.22,261.16,0.02919753]
[1737748262972,0.0256321,261.22,261.17,3.8275]
[1737748263373,0.0256321,261.22,261.17,9.13980981]
[1737748263874,0.0256321,261.22,261.2,3.8271]
[1737748264076,0.0256321,261.22,261.21,9.13980981]
[1737748264472,1.2834,261.34,261.21,9.13980981]
[1737748265172,1.3209,261.38,261.21,9.13980981]
[1737748265573,0.02516987,261.32,261.21,9.13980981]
[1737748265778,0.02516987,261.32,261.27,0.02903542]
[1737748266475,0.02516987,261.32,261.29,3.8257]
[1737748266680,0.02516987,261.32,261.27,0.02903542]
[1737748266878,0.02516987,261.32,261.3,3.8256]
[1737748269282,0.02516987,261.32,261.31,3.8255]
[1737748272185,0.02516987,261.32,261.29,9.13980981]
[1737748273085,0.02516987,261.32,261.31,3.8255]
[1737748274483,2.5714,261.44,261.38,3.8244]
[1737748274484,1.3267,261.44,261.38,3.8244]
[1737748275187,11.66480981,261.52,261.35,9.13980981]
[1737748275188,2.525,261.52,261.35,9.13980981]
[1737748275780,0.02580021,261.46,261.41,0.02783427]
[1737748276087,0.02580021,261.46,261.42,3.8238]
[1737748276282,0.02580021,261.46,261.41,0.02783427]
[1737748277087,0.02580021,261.46,261.41,3.85183427]
[1737748277286,0.02580021,261.46,261.41,0.02783427]
[1737748277587,0.02580021,261.46,261.43,9.13980981]
[1737748277782,0.02580021,261.46,261.45,3.8234]
[1737748278182,1.2775,261.62,261.43,9.13980981]
[1737748278486,1.3004,261.6,261.43,9.13980981]
[1737748279384,0.02902109,261.54,261.49,0.0242868]
[1737748280182,3.8226,261.51,261.49,0.0242868]
[1737748280886,3.8227,261.5,261.49,0.0242868]
[1737748281986,9.13980981,261.53,261.35,9.13980981]
[1737748282186,1.3311,261.52,261.35,9.13980981]
[1737748282385,3.8237,261.43,261.38,3.8244]
[1737748282982,0.02485025,261.43,261.38,0.02462608]
[1737748283888,3.8241,261.41,261.38,0.02462608]
[1737748284088,0.02485025,261.43,261.38,0.02462608]
[1737748285195,3.84865025,261.43,261.38,0.02462608]
[1737748285489,0.02485025,261.43,261.38,0.02462608]
[1737748285691,0.02485025,261.43,261.4,3.824]
[1737748285885,0.02485025,261.43,261.38,0.02462608]
[1737748286689,0.02485025,261.43,261.39,3.8242]
[1737748286884,0.02485025,261.43,261.38,0.02462608]
[1737748287094,0.02485025,261.43,261.39,9.13980981]
[1737748287390,0.02485025,261.43,261.42,3.8239]
[1737748290387,0.02485025,261.43,261.41,3.8239]
[1737748290593,0.02485025,261.43,261.39,9.13980981]
[1737748292489,0.02485025,261.43,261.38,3.84902608]
[1737748293793,0.02485025,261.43,261.39,3.8243]
[1737748295395,0.02485025,261.43,261.4,3.8242]
[1737748296390,0.02485025,261.43,261.42,3.8239]
[1737748298892,9.13980981,261.58,261.46,3.8233]
[1737748299097,3.8223,261.53,261.46,3.8233]
[1737748299298,1.3348,261.59,261.43,9.13980981]
[1737748299492,1.3348,261.59,261.46,3.8232]
[1737748299895,1.3348,261.59,261.43,9.13980981]
[1737748300095,0.02453148,261.55,261.5,0.02800961]
[1737748300891,3.8221,261.54,261.5,0.02800961]
[1737748301298,0.02453148,261.55,261.39,9.13980981]
[1737748301501,3.8228,261.5,261.44,3.8236]
[1737748301993,3.8229,261.49,261.43,3.8237]
[1737748302198,9.13980981,261.54,261.35,9.13980981]
[1737748302497,0.02643244,261.47,261.42,0.02941663]
[1737748303399,3.8234,261.46,261.42,0.02941663]
[1737748303602,0.02643244,261.47,261.42,0.02941663]
[1737748305000,0.02643244,261.47,261.45,3.8233]
[1737748305203,0.02643244,261.47,261.42,0.02941663]
[1737748308405,0.02643244,261.47,261.44,3.8234]
[1737748308898,0.02643244,261.47,261.46,3.8233]
[1737748310807,0.02643244,261.47,261.44,3.8234]
[1737748311304,0.02643244,261.47,261.42,0.02941663]
[1737748312106,0.02643244,261.47,261.45,3.8233]
[1737748313207,0.02643244,261.47,261.42,0.02941663]
[1737748313508,0.02643244,261.47,261.46,3.8233]
[1737748322320,0.02643244,261.47,261.42,0.02941663]
[1737748322717,3.8237,261.43,261.42,0.02941663]
[1737748324019,0.02643244,261.47,261.42,0.02941663]
[1737748324219,3.8236,261.44,261.42,0.02941663]
[1737748324716,0.02643244,261.47,261.32,1.2727]
[1737748324913,9.13980981,261.46,261.27,9.13980981]
[1737748325216,3.8247,261.37,261.31,3.8255]
[1737748325821,9.13980981,261.42,261.29,3.8257]
[1737748326020,0.02926643,261.37,261.31,0.02568351]
[1737748326521,3.8253,261.33,261.31,0.02568351]
[1737748327625,1.2184,261.36,261.31,0.02568351]
[1737748328525,0.02926643,261.37,261.32,3.8253]
[1737748328729,0.02926643,261.37,261.31,0.02568351]
[1737748329927,3.85396643,261.37,261.31,3.85108351]
[1737748330127,3.85396643,261.37,261.31,0.02568351]
[1737748330834,0.02926643,261.37,261.32,3.8253]
[1737748331128,0.02926643,261.37,261.31,0.02568351]
[1737748331729,0.02926643,261.37,261.33,3.825]
[1737748332435,0.02926643,261.37,261.35,3.8249]
[1737748333033,0.02926643,261.37,261.36,3.8248]
[1737748337643,0.02926643,261.37,261.32,9.13980981]
[1737748338040,0.02926643,261.37,261.33,3.8252]
[1737748338237,0.02926643,261.37,261.32,9.13980981]
[1737748338737,0.02926643,261.37,261.36,9.13980981]
[1737748339042,0.02926643,261.37,261.36,3.8248]
[1737748339543,3.822,261.55,261.48,3.8229]
[1737748340342,3.8221,261.54,261.48,3.8229]
[1737748340543,3.84886702,261.54,261.49,0.02590475]
[1737748341348,0.02676702,261.54,261.49,0.02590475]
[1737748341847,3.8227,261.5,261.49,0.02590475]
[1737748342945,0.02676702,261.54,261.38,9.13980981]
[1737748343145,9.13980981,261.53,261.38,9.13980981]
[1737748343842,9.13980981,261.53,261.43,0.0283632]
[1737748344045,0.02747411,261.48,261.43,3.8520632]
[1737748344648,0.02747411,261.48,261.43,0.0283632]
[1737748344850,0.02747411,261.48,261.44,3.8235]
[1737748345043,0.02747411,261.48,261.43,0.0283632]
[1737748346043,0.02747411,261.48,261.47,3.8231]
[1737748350751,0.02747411,261.48,261.43,0.0283632]
[1737748351644,3.8236,261.44,261.43,0.0283632]
[1737748355753,0.02747411,261.48,261.43,0.0283632]
[1737748356352,3.8234,261.46,261.43,0.0283632]
[1737748356755,0.02747411,261.48,261.43,0.0283632]
[1737748356956,0.02747411,261.48,261.46,3.8232]
[1737748357352,0.02747411,261.48,261.43,0.0283632]
[1737748357651,0.02747411,261.48,261.43,3.8520632]
[1737748357855,0.02747411,261.48,261.43,0.0283632]
[1737748358356,3.8236,261.44,261.43,0.0283632]
[1737748363556,3.8244,261.39,261.33,9.13980981]
[1737748363855,3.8244,261.39,261.35,3.8249]
[1737748364456,3.8236,261.44,261.41,3.824]
[1737748364758,0.02793233,261.4,261.37,9.13980981]
[1737748365449,0.02793233,261.4,261.39,3.8243]
[1737748378166,0.02793233,261.4,261.37,3.8245]
[1737748378360,0.02793233,261.4,261.36,0.02947197]
[1737748378760,0.02793233,261.4,261.39,3.8243]
[1737748379872,0.02793233,261.4,261.39,9.66728887]
[1737748380466,3.823,261.49,261.43,3.8237]
[1737748380660,7.6417,261.63,261.26,1.2347]
[1737748380661,7.12728887,261.56,261.47,5.84298887]
[1737748381166,3.8221,261.55,261.47,5.84298887]
[1737748381364,3.8221,261.55,261.5,5.84298887]
[1737748381566,5.1061,261.56,261.53,3.8223]
[1737748381770,0.02860929,261.55,261.53,5.84298887]
[1737748382069,0.02860929,261.55,261.54,3.8221]
[1737748382263,0.02860929,261.55,261.53,5.84298887]
[1737748382469,0.02860929,261.55,261.5,5.87065207]
[1737748382670,3.8223,261.53,261.5,5.87065207]
[1737748383070,3.8223,261.53,261.5,0.0276632]
[1737748383369,0.02860929,261.55,261.5,0.0276632]
[1737748383568,0.02860929,261.55,261.5,9.69335207]
[1737748383865,0.02860929,261.55,261.5,5.87065207]
[1737748384768,3.8224,261.52,261.5,0.0276632]
[1737748384963,5.84298887,261.53,261.44,5.84298887]
[1737748385567,5.84298887,261.53,261.45,3.8234]
[1737748385771,5.84298887,261.53,261.44,5.84298887]
[1737748386168,0.02859728,261.51,261.46,0.02762408]
[1737748386368,3.8228,261.5,261.46,3.85092408]
[1737748387472,3.8228,261.5,261.46,0.02762408]
[1737748388376,3.823,261.48,261.46,0.02762408]
[1737748389272,3.8228,261.5,261.46,0.02762408]
[1737748389478,0.02859728,261.51,261.46,0.02762408]
[1737748389873,3.8228,261.5,261.46,0.02762408]
[1737748390075,0.02859728,261.51,261.46,0.02762408]
[1737748390878,3.823,261.48,261.46,0.02762408]
[1737748393484,0.02859728,261.51,261.47,5.84298887]
[1737748394083,3.8228,261.5,261.46,0.02762408]
[1737748394280,0.02859728,261.51,261.46,0.02762408]
[1737748396090,3.823,261.48,261.46,0.02762408]
[1737748398383,0.02859728,261.51,261.46,0.02762408]
[1737748398590,3.8229,261.49,261.46,3.85092408]
[1737748398981,3.8227,261.5,261.46,3.85092408]
[1737748399183,0.02859728,261.51,261.46,5.87061295]
[1737748399590,0.02859728,261.51,261.49,3.8227]
[1737748399984,0.02859728,261.51,261.46,5.87061295]
[1737748400891,0.02859728,261.51,261.46,0.02762408]
[1737748402295,3.823,261.48,261.46,0.02762408]
[1737748402991,3.8231,261.47,261.46,0.02762408]
[1737748403291,0.02859728,261.51,261.46,0.02762408]
[1737748403795,3.85119728,261.51,261.47,3.823]
[1737748404798,0.02859728,261.51,261.49,3.8228]
[1737748405396,0.02859728,261.51,261.47,3.823]
[1737748405599,0.02859728,261.51,261.46,5.87061295]
[1737748406101,3.8228,261.49,261.46,0.02762408]
[1737748406401,0.02859728,261.51,261.46,0.02762408]
[1737748407999,3.823,261.49,261.46,0.02762408]
[1737748408495,3.85129728,261.51,261.46,0.02762408]
[1737748408697,0.02859728,261.51,261.49,5.84298887]
[1737748408992,0.02859728,261.51,261.47,3.823]
[1737748409300,0.02859728,261.51,261.46,0.02762408]
[1737748410099,3.823,261.48,261.46,0.02762408]
[1737748411103,3.8231,261.47,261.46,0.02762408]
[1737748414006,3.8229,261.49,261.46,3.85082408]
[1737748414299,5.84298887,261.5,261.46,0.02762408]
[1737748414702,3.8231,261.47,261.46,0.02762408]
[1737748421507,3.8229,261.49,261.46,0.02762408]
[1737748421708,1.32959728,261.51,261.46,0.02762408]
[1737748422012,3.823,261.49,261.46,0.02762408]
[1737748423814,3.823,261.49,261.46,3.85092408]
[1737748426813,0.02859728,261.51,261.46,0.02762408]
[1737748427014,0.02859728,261.51,261.47,3.8231]
[1737748428214,3.8228,261.5,261.47,3.8231]
[1737748435216,0.02859728,261.51,261.48,3.823]
[1737748435721,0.02859728,261.51,261.46,0.02762408]
[1737748435917,5.84298887,261.49,261.46,0.02762408]
[1737748437220,3.8231,261.47,261.46,0.02762408]
[1737748440420,3.823,261.49,261.46,0.02762408]
[1737748441221,0.02859728,261.51,261.46,0.02762408]
[1737748441424,3.823,261.48,261.46,0.02762408]
[1737748443619,3.8228,261.5,261.46,3.85092408]
[1737748444020,0.02859728,261.51,261.46,3.85092408]
[1737748444221,3.8229,261.49,261.46,3.85092408]
[1737748444628,0.02859728,261.51,261.46,3.85092408]
[1737748446126,3.8227,261.5,261.46,3.85092408]
[1737748446631,3.8228,261.49,261.46,3.85092408]
[1737748449125,0.02859728,261.51,261.46,3.85092408]
[1737748449332,3.8228,261.5,261.46,3.85092408]
[1737748450426,0.02859728,261.51,261.46,0.02762408]
[1737748451128,3.8229,261.49,261.46,3.85092408]
[1737748452128,3.8231,261.47,261.46,0.02762408]
[1737748457335,3.823,261.48,261.46,0.02762408]
[1737748459045,5.84298887,261.49,261.46,0.02762408]
[1737748459345,3.8231,261.47,261.46,0.02762408]
[1737748462041,3.8228,261.5,261.46,0.02762408]
[1737748462238,0.02859728,261.51,261.46,0.02762408]
[1737748462439,0.02859728,261.51,261.5,3.8227]
[1737748464648,3.85119728,261.51,261.46,1.27192408]
[1737748466248,3.85119728,261.51,261.47,3.8231]
[1737748466642,0.02859728,261.51,261.46,1.27192408]
[1737748466841,0.02859728,261.51,261.49,3.8227]
[1737748467050,0.02859728,261.51,261.46,1.27192408]
[1737748467549,3.85119728,261.51,261.47,3.8231]
[1737748476460,3.8231,261.47,261.46,0.02762408]
[1737748478661,5.84298887,261.49,261.36,2.39867]
[1737748478861,3.824,261.41,261.36,2.39867]
[1737748479860,3.824,261.41,261.36,6.24984312]
[1737748480060,3.84982515,261.41,261.36,6.24984312]
[1737748480258,0.02582515,261.41,261.36,2.42514312]
[1737748480457,0.02582515,261.41,261.4,3.8242]
[1737748494568,1.2892,261.5,261.44,3.8234]
[1737748494872,7.08698887,261.54,261.43,5.84298887]
[1737748495059,3.8226,261.51,261.43,5.84298887]
[1737748495766,0.02597575,261.5,261.47,3.823]
[1737748496969,0.02597575,261.5,261.44,0.02505842]
[1737748497167,0.02597575,261.5,261.48,3.823]
[1737748497469,0.02597575,261.5,261.46,5.84298887]
[1737748497670,0.02597575,261.5,261.49,3.8228]
[1737748502469,0.02597575,261.5,261.45,3.8233]
[1737748502969,3.8229,261.49,261.45,3.8233]
[1737748503572,3.823,261.48,261.44,0.02505842]
[1737748504475,0.02597575,261.5,261.44,0.02505842]
[1737748504672,0.02597575,261.5,261.46,5.84298887]
[1737748505271,5.84298887,261.57,261.44,0.02505842]
[1737748505466,3.8201,261.68,261.55,5.84298887]
[1737748505672,5.84298887,261.69,261.59,5.84298887]
[1737748505971,2.5163,261.74,261.43,45.10113085]
[1737748505972,5.84298887,261.72,261.65,3.8204]
[1737748506274,5.84298887,261.72,261.62,5.84298887]
[1737748506477,0.02427711,261.7,261.64,0.02592046]
[1737748508073,3.82,261.69,261.64,0.02592046]
[1737748508881,3.8202,261.68,261.64,0.02592046]
[1737748509378,0.02427711,261.7,261.64,3.84652046]
[1737748509773,0.02427711,261.7,261.65,5.84298887]
[1737748509980,0.02427711,261.7,261.68,5.84298887]
[1737748510178,0.02427711,261.7,261.68,9.66308887]
[1737748512782,0.02427711,261.7,261.68,5.84298887]
[1737748513081,0.02427711,261.7,261.66,3.8202]
[1737748514380,0.02427711,261.7,261.68,5.84298887]
[1737748514584,0.02427711,261.7,261.64,0.02592046]
[1737748514785,3.8204,261.66,261.64,0.02592046]
[1737748517182,3.8205,261.65,261.64,0.02592046]
[1737748519483,7.711e-05,261.7,261.69,3.8199]
[1737748519682,5.84298887,261.87,261.69,5.84298887]
[1737748519886,5.84298887,261.87,261.75,5.84298887]
[1737748520689,3.818,261.83,261.78,3.8186]
[1737748520889,3.818,261.83,261.78,0.02591561]
[1737748521288,0.02599278,261.84,261.78,0.02591561]
[1737748521489,3.8181,261.82,261.78,0.02591561]
[1737748522489,0.02599278,261.84,261.78,0.02591561]
[1737748522989,3.8182,261.81,261.78,0.02591561]
[1737748524391,0.02599278,261.84,261.78,0.02591561]
[1737748527094,3.8183,261.81,261.78,0.02591561]
[1737748528289,0.02599278,261.84,261.78,0.02591561]
[1737748528794,0.02599278,261.84,261.8,3.8182]
[1737748528995,0.02599278,261.84,261.8,9.10403723]
[1737748530690,0.02599278,261.84,261.83,3.8179]
[1737748534403,0.02599278,261.84,261.78,3.84441561]
[1737748535405,3.818,261.83,261.78,3.84441561]
[1737748535605,0.02599278,261.84,261.78,0.02591561]
[1737748536302,3.8183,261.81,261.78,0.02591561]
[1737748536605,0.02599278,261.84,261.78,0.02591561]
[1737748537102,3.8185,261.79,261.78,0.02591561]
[1737748543309,3.8194,261.73,261.65,9.10403723]
[1737748543808,3.8194,261.73,261.7,5.82933058]
[1737748544602,3.84465352,261.74,261.7,5.82933058]
[1737748545404,0.02545352,261.74,261.73,5.82933058]
[1737748546509,0.02545352,261.74,261.73,9.64863058]
[1737748547705,0.02545352,261.74,261.73,3.8193]
[1737748562925,0.02545352,261.74,261.72,3.8195]
[1737748566331,1.3377,261.81,261.71,9.10464287]
[1737748566633,3.8185,261.79,261.71,9.10464287]
[1737748567531,3.84429076,261.78,261.73,3.8192]
[1737748567834,3.84429076,261.78,261.76,5.82640711]
[1737748568333,0.02569076,261.78,261.76,5.82640711]
[1737748568528,3.8188,261.77,261.76,5.82640711]
[1737748573637,0.02569076,261.78,261.76,5.82640711]
[1737748574940,3.8192,261.74,261.73,5.85184876]
[1737748576137,0.02569076,261.78,261.77,3.8188]
[1737748576340,0.02569076,261.78,261.77,9.64520711]
[1737748591546,0.02569076,261.78,261.77,5.82640711]
[1737748591747,3.84429076,261.78,261.74,5.82640711]
[1737748591949,0.02569076,261.78,261.74,5.82640711]
[1737748593040,3.84439076,261.78,261.74,5.82640711]
[1737748596541,0.02569076,261.78,261.74,5.82640711]
[1737748598052,3.84439076,261.78,261.74,5.82640711]
[1737748599347,3.84439076,261.78,261.74,9.64560711]
[1737748600253,0.02569076,261.78,261.75,3.819]
[1737748600452,0.02569076,261.78,261.77,5.82640711]
[1737748600848,0.02569076,261.78,261.77,9.64520711]
[1737748603359,3.847,261.92,261.77,5.82640711]
[1737748603548,3.847,261.92,261.85,5.82640711]
[1737748603752,3.847,261.92,261.88,5.82640711]
[1737748603951,2.5237,261.92,261.88,5.82640711]
[1737748604352,2.5237,261.92,261.88,9.64350711]
[1737748604559,1.2671,261.92,261.88,9.64350711]
[1737748605160,1.2671,261.92,261.9,3.8168]
[1737748605654,0.0286367,261.93,261.88,5.82640711]
[1737748605860,0.0286367,261.93,261.91,3.8166]
[1737748606662,0.0286367,261.93,261.87,0.02800934]
[1737748608163,3.8168,261.91,261.87,3.84530934]
[1737748608358,0.0286367,261.93,261.87,3.84530934]
[1737748609663,3.8167,261.92,261.87,3.84530934]
[1737748610166,3.8171,261.89,261.87,0.02800934]
[1737748611565,3.8172,261.88,261.87,0.02800934]
[1737748612062,0.0286367,261.93,261.87,0.02800934]
[1737748612268,0.0286367,261.93,261.91,5.82640711]
[1737748613662,0.0286367,261.93,261.92,3.8166]
[1737748618871,5.82640711,262.09,261.91,5.82640711]